Workbook

Sheet カロリー計算
B2: みる 2014/1/28生
B3: 時刻 | C3: フード | D3: タイプ | E3: 熱量 (カタログ値) | G3: 一日給餌量 | I3: エネルギー ( Kcal ) | L3: 印刷範囲外計算枠
B4: 日計 | C4: FHN エクシジェント42 | D4: ドライ | E4: 387 | F4: Kcal/100g | G4: 8 | H4: g | I4: =(INT(L4*100))/100 -> 30.96 | L4: =IF(F4="Kcal/Kg",E4*G4/1000,IF(F4="Kcal/100g",E4*G4/100,E4*G4)) -> 30.96
B5: 日計 | C5: FHN インドア 7+ | D5: ドライ | E5: 380 | F5: Kcal/100g | G5: 8 | H5: g | I5: =(INT(L5*100))/100 -> 30.4 | L5: =IF(F5="Kcal/Kg",E5*G5/1000,IF(F5="Kcal/100g",E5*G5/100,E5*G5)) -> 30.4
B6: 日計 | C6: FHN ステアライズド 7+ | D6: ドライ | E6: 350 | F6: Kcal/100g | G6: 8 | H6: g | I6: 28 | L6: 28
B7: 日計 | C7: ウルトラライト (85g パウチ) | D7: ウェット | E7: 69 | F7: Kcal/100g | G7: 85 | H7: g | I7: 58.65 | L7: 58.65
B8: 日計 | C8: おやつ各種、少量 | D8: おやつ | E8: 40 | F8: Kcal/個 | G8: 0.5 | H8: 個 | I8: 20 | L8: 20
G9: 0 | I9: 0 | L9: 0
I10: 0 | L10: 0
I11: 0 | L11: 0
I12: 0 | L12: 0
I13: 0 | L13: 0
E14: 0 | G14: 0 | I14: 0 | L14: 0
I15: 0 | L15: 0
I16: 0 | L16: 0
E17: 0 | G17: 0 | I17: 0 | L17: 0
B18: 一日摂取合計 Kcal | I18: =SUM(I4:I17) -> 168.01
B19: 2023-09-30 | D19: 体 重 | E19: =体重の記録!D241 -> 5.85 | F19: Kg | G19: 目標 Kcal | I19: =IF(F19="g",E19*E20/1000,IF(F19="Kg",E19*E20,0)) -> 163.8
B20: 体重に対する基本のエネルギー量は成猫で80Kcal/Kg。 室内飼いの場合は70Kcal/Kg で計算する。1歳までの子猫は100～200Kcal/Kgで計算。 体重の変化や運動量で適宜増減する。 | D20: 基本熱量 | E20: 28 | F20: Kcal/Kg | G20: 過不足 % | I20: =(I18/I19*100)-100 -> 2.57020757
D21: 許容差± | E21: 10 | F21: ％ | G21: =IF((I18/I19)<(1-(E21/100)),"※不足しています",IF((I18/I19)>(1+(E21/100)),"※超過しています","※摂取量は適正です")) -> ※摂取量は適正です
B23: MEMO :

Sheet マグネシウム
B2: =CONCATENATE(カロリー計算!B2," の栄養素管理") -> みる 2014/1/28生 の栄養素管理
B3: 種 別 | C3: ミネラル | D3: 管 理 成分名 | E3: マグネシウム | I3: 判定法 | J3: Max
B4: フード名 | F4: タイプ | G4: 含有量／単位 | I4: 一日摂取量 | N4: 印刷範囲外計算枠
B5: =カロリー計算!$C$4 -> FHN エクシジェント42 | F5: =カロリー計算!$D$4 -> ドライ | G5: 0.08 | H5: % | I5: =IF(H5="%",IF(G5<1,カロリー計算!G4*マグネシウム!G5*10,カロリー計算!G4*マグネシウム!G5/100),IF(H5="Kcal/Kg",カロリー計算!G4*G5/1000,IF(H5="mg/Kg",カロリー計算!G4*G5/1000,IF(H5="IU/Kg",カロリー計算!G4*G5/1000,G5)))) -> 6.4 | J5: =IF(H5="%",IF(G5<1,"mg","g"),IF(H5="Kcal/Kg","Kcal",IF(H5="mg/Kg","mg",IF(H5="IU/Kg","IU",IF(H5="pH","pH","---"))))) -> mg | N5: =IF(J5="g",INT(I5*1000),IF(J5="pH",0,I5)) -> 6.4
B6: =カロリー計算!$C$5 -> FHN インドア 7+ | F6: =カロリー計算!$D$5 -> ドライ | G6: 0.08 | H6: % | I6: =IF(H6="%",IF(G6<1,カロリー計算!G5*マグネシウム!G6*10,カロリー計算!G5*マグネシウム!G6/100),IF(H6="Kcal/Kg",カロリー計算!G5*G6/1000,IF(H6="mg/Kg",カロリー計算!G5*G6/1000,IF(H6="IU/Kg",カロリー計算!G5*G6/1000,G6)))) -> 6.4 | J6: mg | N6: =IF(J6="g",INT(I6*1000),IF(J6="pH",0,I6)) -> 6.4
B7: =カロリー計算!$C$6 -> FHN ステアライズド 7+ | F7: =カロリー計算!$D$6 -> ドライ | G7: 0.07 | H7: % | I7: =IF(H7="%",IF(G7<1,カロリー計算!G6*マグネシウム!G7*10,カロリー計算!G6*マグネシウム!G7/100),IF(H7="Kcal/Kg",カロリー計算!G6*G7/1000,IF(H7="mg/Kg",カロリー計算!G6*G7/1000,IF(H7="IU/Kg",カロリー計算!G6*G7/1000,G7)))) -> 5.6 | J7: mg | N7: 5.6
B8: =カロリー計算!$C$7 -> ウルトラライト (85g パウチ) | F8: =カロリー計算!$D$7 -> ウェット | G8: 0.026 | H8: % | I8: =IF(H8="%",IF(G8<1,カロリー計算!G7*マグネシウム!G8*10,カロリー計算!G7*マグネシウム!G8/100),IF(H8="Kcal/Kg",カロリー計算!G7*G8/1000,IF(H8="mg/Kg",カロリー計算!G7*G8/1000,IF(H8="IU/Kg",カロリー計算!G7*G8/1000,G8)))) -> 22.1 | J8: mg | N8: 22.1
B9: =カロリー計算!$C$8 -> おやつ各種、少量 | F9: =カロリー計算!$D$8 -> おやつ | I9: =IF(H9="%",IF(G9<1,カロリー計算!G8*マグネシウム!G9*10,カロリー計算!G8*マグネシウム!G9/100),IF(H9="Kcal/Kg",カロリー計算!G8*G9/1000,IF(H9="mg/Kg",カロリー計算!G8*G9/1000,IF(H9="IU/Kg",カロリー計算!G8*G9/1000,G9)))) -> 0 | J9: --- | N9: 0
B10: =カロリー計算!$C$9 ->  | F10: =カロリー計算!$D$9 -> 0 | I10: =IF(H10="%",IF(G10<1,カロリー計算!G9*マグネシウム!G10*10,カロリー計算!G9*マグネシウム!G10/100),IF(H10="Kcal/Kg",カロリー計算!G9*G10/1000,IF(H10="mg/Kg",カロリー計算!G9*G10/1000,IF(H10="IU/Kg",カロリー計算!G9*G10/1000,G10)))) -> 0 | J10: --- | N10: 0
B11: =カロリー計算!$C$10 ->  | F11: =カロリー計算!$D$10 -> 0 | I11: =IF(H11="%",IF(G11<1,カロリー計算!G10*マグネシウム!G11*10,カロリー計算!G10*マグネシウム!G11/100),IF(H11="Kcal/Kg",カロリー計算!G10*G11/1000,IF(H11="mg/Kg",カロリー計算!G10*G11/1000,IF(H11="IU/Kg",カロリー計算!G10*G11/1000,G11)))) -> 0 | J11: --- | N11: 0
B12: =カロリー計算!$C$11 ->  | F12: =カロリー計算!$D$11 -> 0 | I12: =IF(H12="%",IF(G12<1,カロリー計算!G11*マグネシウム!G12*10,カロリー計算!G11*マグネシウム!G12/100),IF(H12="Kcal/Kg",カロリー計算!G11*G12/1000,IF(H12="mg/Kg",カロリー計算!G11*G12/1000,IF(H12="IU/Kg",カロリー計算!G11*G12/1000,G12)))) -> 0 | J12: --- | N12: 0
B13: =カロリー計算!$C$12 ->  | F13: =カロリー計算!$D$12 -> 0 | I13: =IF(H13="%",IF(G13<1,カロリー計算!G12*マグネシウム!G13*10,カロリー計算!G12*マグネシウム!G13/100),IF(H13="Kcal/Kg",カロリー計算!G12*G13/1000,IF(H13="mg/Kg",カロリー計算!G12*G13/1000,IF(H13="IU/Kg",カロリー計算!G12*G13/1000,G13)))) -> 0 | J13: --- | N13: 0
B14: =カロリー計算!$C$13 ->  | F14: =カロリー計算!$D$13 -> 0 | I14: =IF(H14="%",IF(G14<1,カロリー計算!G13*マグネシウム!G14*10,カロリー計算!G13*マグネシウム!G14/100),IF(H14="Kcal/Kg",カロリー計算!G13*G14/1000,IF(H14="mg/Kg",カロリー計算!G13*G14/1000,IF(H14="IU/Kg",カロリー計算!G13*G14/1000,G14)))) -> 0 | J14: --- | N14: 0
B15: =カロリー計算!$C$14 ->  | F15: =カロリー計算!$D$14 -> 0 | G15: 0 | I15: =IF(H15="%",IF(G15<1,カロリー計算!G14*マグネシウム!G15*10,カロリー計算!G14*マグネシウム!G15/100),IF(H15="Kcal/Kg",カロリー計算!G14*G15/1000,IF(H15="mg/Kg",カロリー計算!G14*G15/1000,IF(H15="IU/Kg",カロリー計算!G14*G15/1000,G15)))) -> 0 | J15: --- | N15: 0
B16: =カロリー計算!$C$15 ->  | F16: =カロリー計算!$D$15 -> 0 | I16: =IF(H16="%",IF(G16<1,カロリー計算!G15*マグネシウム!G16*10,カロリー計算!G15*マグネシウム!G16/100),IF(H16="Kcal/Kg",カロリー計算!G15*G16/1000,IF(H16="mg/Kg",カロリー計算!G15*G16/1000,IF(H16="IU/Kg",カロリー計算!G15*G16/1000,G16)))) -> 0 | J16: --- | N16: 0
B17: =カロリー計算!$C$16 ->  | F17: =カロリー計算!$D$16 -> 0 | I17: =IF(H17="%",IF(G17<1,カロリー計算!G16*マグネシウム!G17*10,カロリー計算!G16*マグネシウム!G17/100),IF(H17="Kcal/Kg",カロリー計算!G16*G17/1000,IF(H17="mg/Kg",カロリー計算!G16*G17/1000,IF(H17="IU/Kg",カロリー計算!G16*G17/1000,G17)))) -> 0 | J17: --- | N17: 0
B18: =カロリー計算!$C$17 ->  | F18: =カロリー計算!$D$17 -> 0 | G18: 0 | I18: =IF(H18="%",IF(G18<1,カロリー計算!G17*マグネシウム!G18*10,カロリー計算!G17*マグネシウム!G18/100),IF(H18="Kcal/Kg",カロリー計算!G17*G18/1000,IF(H18="mg/Kg",カロリー計算!G17*G18/1000,IF(H18="IU/Kg",カロリー計算!G17*G18/1000,G18)))) -> 0 | J18: --- | N18: 0
B19: =カロリー計算!B19 -> 2023-09-30 | E19: 更新 | G19: 合 計 | I19: =N19 -> 40.5 | J19: mg | N19: =IF(J19="g",SUM(N5:N18)/1000,SUM(N5:N18)) -> 40.5
B20: 体重1キロ当りの制限値 | D20: 20 | F20: =IF(J19="mg","mg/Kg",IF(J19="g","g/Kg",IF(J19="IU","IU/Kg",IF(J19="Kcal","Kcal/Kg","－－－")))) -> mg/Kg | G20: =IF(J3="無判定",CONCATENATE(J3," "),CONCATENATE(J3," 制限値 ")) -> Max 制限値 | I20: =カロリー計算!E19*マグネシウム!D20 -> 117 | J20: =J19 -> mg
B21: 過不足 ・ 判 定 | I21: =I19-I20 -> -76.5 | J21: =IF(J3="Max",IF(I19>I20,"超過","OK"),IF(J3="Min",IF(I19<I20,"不足","OK")," ")) -> OK
B23: MEMO :

Sheet カルシウム
B2: =CONCATENATE(カロリー計算!B2," の栄養素管理") -> みる 2014/1/28生 の栄養素管理
B3: 種 別 | C3: ミネラル | D3: 管 理 成分名 | E3: カルシウム | I3: 判定法 | J3: Min
B4: フード名 | F4: タイプ | G4: 含有量／単位 | I4: 一日摂取量 | N4: 印刷範囲外計算枠
B5: =カロリー計算!$C$4 -> FHN エクシジェント42 | F5: =カロリー計算!$D$4 -> ドライ | G5: 1.3 | H5: % | I5: =IF(H5="%",IF(G5<1,カロリー計算!G4*カルシウム!G5*10,カロリー計算!G4*カルシウム!G5/100),IF(H5="Kcal/Kg",カロリー計算!G4*G5/1000,IF(H5="mg/Kg",カロリー計算!G4*G5/1000,IF(H5="IU/Kg",カロリー計算!G4*G5/1000,G5)))) -> 0.104 | J5: =IF(H5="%",IF(G5<1,"mg","g"),IF(H5="Kcal/Kg","Kcal",IF(H5="mg/Kg","mg",IF(H5="IU/Kg","IU",IF(H5="pH","pH","---"))))) -> g | N5: =IF(J5="g",INT(I5*1000),IF(J5="pH",0,I5)) -> 104
B6: =カロリー計算!$C$5 -> FHN インドア 7+ | F6: =カロリー計算!$D$5 -> ドライ | G6: 0.79 | H6: % | I6: =IF(H6="%",IF(G6<1,カロリー計算!G5*カルシウム!G6*10,カロリー計算!G5*カルシウム!G6/100),IF(H6="Kcal/Kg",カロリー計算!G5*G6/1000,IF(H6="mg/Kg",カロリー計算!G5*G6/1000,IF(H6="IU/Kg",カロリー計算!G5*G6/1000,G6)))) -> 63.2 | J6: mg | N6: 63.2
B7: =カロリー計算!$C$6 -> FHN ステアライズド 7+ | F7: =カロリー計算!$D$6 -> ドライ | G7: 1 | H7: % | I7: =IF(H7="%",IF(G7<1,カロリー計算!G6*カルシウム!G7*10,カロリー計算!G6*カルシウム!G7/100),IF(H7="Kcal/Kg",カロリー計算!G6*G7/1000,IF(H7="mg/Kg",カロリー計算!G6*G7/1000,IF(H7="IU/Kg",カロリー計算!G6*G7/1000,G7)))) -> 0.08 | J7: g | N7: 80
B8: =カロリー計算!$C$7 -> ウルトラライト (85g パウチ) | F8: =カロリー計算!$D$7 -> ウェット | G8: 0.39 | H8: % | I8: =IF(H8="%",IF(G8<1,カロリー計算!G7*カルシウム!G8*10,カロリー計算!G7*カルシウム!G8/100),IF(H8="Kcal/Kg",カロリー計算!G7*G8/1000,IF(H8="mg/Kg",カロリー計算!G7*G8/1000,IF(H8="IU/Kg",カロリー計算!G7*G8/1000,G8)))) -> 331.5 | J8: mg | N8: 331.5
B9: =カロリー計算!$C$8 -> おやつ各種、少量 | F9: =カロリー計算!$D$8 -> おやつ | I9: =IF(H9="%",IF(G9<1,カロリー計算!G8*カルシウム!G9*10,カロリー計算!G8*カルシウム!G9/100),IF(H9="Kcal/Kg",カロリー計算!G8*G9/1000,IF(H9="mg/Kg",カロリー計算!G8*G9/1000,IF(H9="IU/Kg",カロリー計算!G8*G9/1000,G9)))) -> 0 | J9: --- | N9: 0
B10: =カロリー計算!$C$9 ->  | F10: =カロリー計算!$D$9 -> 0 | I10: =IF(H10="%",IF(G10<1,カロリー計算!G9*カルシウム!G10*10,カロリー計算!G9*カルシウム!G10/100),IF(H10="Kcal/Kg",カロリー計算!G9*G10/1000,IF(H10="mg/Kg",カロリー計算!G9*G10/1000,IF(H10="IU/Kg",カロリー計算!G9*G10/1000,G10)))) -> 0 | J10: --- | N10: 0
B11: =カロリー計算!$C$10 ->  | F11: =カロリー計算!$D$10 -> 0 | I11: =IF(H11="%",IF(G11<1,カロリー計算!G10*カルシウム!G11*10,カロリー計算!G10*カルシウム!G11/100),IF(H11="Kcal/Kg",カロリー計算!G10*G11/1000,IF(H11="mg/Kg",カロリー計算!G10*G11/1000,IF(H11="IU/Kg",カロリー計算!G10*G11/1000,G11)))) -> 0 | J11: --- | N11: 0
B12: =カロリー計算!$C$11 ->  | F12: =カロリー計算!$D$11 -> 0 | I12: =IF(H12="%",IF(G12<1,カロリー計算!G11*カルシウム!G12*10,カロリー計算!G11*カルシウム!G12/100),IF(H12="Kcal/Kg",カロリー計算!G11*G12/1000,IF(H12="mg/Kg",カロリー計算!G11*G12/1000,IF(H12="IU/Kg",カロリー計算!G11*G12/1000,G12)))) -> 0 | J12: --- | N12: 0
B13: =カロリー計算!$C$12 ->  | F13: =カロリー計算!$D$12 -> 0 | I13: =IF(H13="%",IF(G13<1,カロリー計算!G12*カルシウム!G13*10,カロリー計算!G12*カルシウム!G13/100),IF(H13="Kcal/Kg",カロリー計算!G12*G13/1000,IF(H13="mg/Kg",カロリー計算!G12*G13/1000,IF(H13="IU/Kg",カロリー計算!G12*G13/1000,G13)))) -> 0 | J13: --- | N13: 0
B14: =カロリー計算!$C$13 ->  | F14: =カロリー計算!$D$13 -> 0 | I14: =IF(H14="%",IF(G14<1,カロリー計算!G13*カルシウム!G14*10,カロリー計算!G13*カルシウム!G14/100),IF(H14="Kcal/Kg",カロリー計算!G13*G14/1000,IF(H14="mg/Kg",カロリー計算!G13*G14/1000,IF(H14="IU/Kg",カロリー計算!G13*G14/1000,G14)))) -> 0 | J14: --- | N14: 0
B15: =カロリー計算!$C$14 ->  | F15: =カロリー計算!$D$14 -> 0 | G15: 0 | I15: =IF(H15="%",IF(G15<1,カロリー計算!G14*カルシウム!G15*10,カロリー計算!G14*カルシウム!G15/100),IF(H15="Kcal/Kg",カロリー計算!G14*G15/1000,IF(H15="mg/Kg",カロリー計算!G14*G15/1000,IF(H15="IU/Kg",カロリー計算!G14*G15/1000,G15)))) -> 0 | J15: --- | N15: 0
B16: =カロリー計算!$C$15 ->  | F16: =カロリー計算!$D$15 -> 0 | I16: =IF(H16="%",IF(G16<1,カロリー計算!G15*カルシウム!G16*10,カロリー計算!G15*カルシウム!G16/100),IF(H16="Kcal/Kg",カロリー計算!G15*G16/1000,IF(H16="mg/Kg",カロリー計算!G15*G16/1000,IF(H16="IU/Kg",カロリー計算!G15*G16/1000,G16)))) -> 0 | J16: --- | N16: 0
B17: =カロリー計算!$C$16 ->  | F17: =カロリー計算!$D$16 -> 0 | I17: =IF(H17="%",IF(G17<1,カロリー計算!G16*カルシウム!G17*10,カロリー計算!G16*カルシウム!G17/100),IF(H17="Kcal/Kg",カロリー計算!G16*G17/1000,IF(H17="mg/Kg",カロリー計算!G16*G17/1000,IF(H17="IU/Kg",カロリー計算!G16*G17/1000,G17)))) -> 0 | J17: --- | N17: 0
B18: =カロリー計算!$C$17 ->  | F18: =カロリー計算!$D$17 -> 0 | G18: 0 | I18: =IF(H18="%",IF(G18<1,カロリー計算!G17*カルシウム!G18*10,カロリー計算!G17*カルシウム!G18/100),IF(H18="Kcal/Kg",カロリー計算!G17*G18/1000,IF(H18="mg/Kg",カロリー計算!G17*G18/1000,IF(H18="IU/Kg",カロリー計算!G17*G18/1000,G18)))) -> 0 | J18: --- | N18: 0
B19: =カロリー計算!B19 -> 2023-09-30 | E19: 更新 | G19: 合 計 | I19: =N19 -> 578.7 | J19: mg | N19: =IF(J19="g",SUM(N5:N18)/1000,SUM(N5:N18)) -> 578.7
B20: 体重1キロ当りの制限値 | D20: 80 | F20: =IF(J19="mg","mg/Kg",IF(J19="g","g/Kg",IF(J19="IU","IU/Kg",IF(J19="Kcal","Kcal/Kg","－－－")))) -> mg/Kg | G20: =IF(J3="無判定",CONCATENATE(J3," "),CONCATENATE(J3," 制限値 ")) -> Min 制限値 | I20: =カロリー計算!E19*カルシウム!D20 -> 468 | J20: =J19 -> mg
B21: 過不足 ・ 判 定 | I21: =I19-I20 -> 110.7 | J21: =IF(J3="Max",IF(I19>I20,"超過","OK"),IF(J3="Min",IF(I19<I20,"不足","OK")," ")) -> OK
B23: MEMO :
B24: 成長期(10～40週)は150mg/Kg、維持期は80mg/Kg

Sheet 成分追加用マスター
B2: =CONCATENATE(カロリー計算!B2," の栄養素管理") -> みる 2014/1/28生 の栄養素管理
B3: 種 別 | D3: 管 理 成分名 | E3: 予備・成分の追加はこのシートをコピーする。 | I3: 判定法 | J3: Max
B4: フード名 | F4: タイプ | G4: 含有量／単位 | I4: 一日摂取量 | N4: 印刷範囲外計算枠
B5: =カロリー計算!$C$4 -> FHN エクシジェント42 | F5: =カロリー計算!$D$4 -> ドライ | G5: 0 | H5: % | I5: =IF(H5="%",IF(G5<1,カロリー計算!G4*成分追加用マスター!G5*10,カロリー計算!G4*成分追加用マスター!G5/100),IF(H5="Kcal/Kg",カロリー計算!G4*G5/1000,IF(H5="mg/Kg",カロリー計算!G4*G5/1000,IF(H5="IU/Kg",カロリー計算!G4*G5/1000,G5)))) -> 0 | J5: =IF(H5="%",IF(G5<1,"mg","g"),IF(H5="Kcal/Kg","Kcal",IF(H5="mg/Kg","mg",IF(H5="IU/Kg","IU",IF(H5="pH","pH","---"))))) -> mg | N5: =IF(J5="g",INT(I5*1000),IF(J5="pH",0,I5)) -> 0
B6: =カロリー計算!$C$5 -> FHN インドア 7+ | F6: =カロリー計算!$D$5 -> ドライ | G6: 0 | H6: % | I6: =IF(H6="%",IF(G6<1,カロリー計算!G5*成分追加用マスター!G6*10,カロリー計算!G5*成分追加用マスター!G6/100),IF(H6="Kcal/Kg",カロリー計算!G5*G6/1000,IF(H6="mg/Kg",カロリー計算!G5*G6/1000,IF(H6="IU/Kg",カロリー計算!G5*G6/1000,G6)))) -> 0 | J6: mg | N6: 0
B7: =カロリー計算!$C$6 -> FHN ステアライズド 7+ | F7: =カロリー計算!$D$6 -> ドライ | G7: 0 | H7: % | I7: =IF(H7="%",IF(G7<1,カロリー計算!G6*成分追加用マスター!G7*10,カロリー計算!G6*成分追加用マスター!G7/100),IF(H7="Kcal/Kg",カロリー計算!G6*G7/1000,IF(H7="mg/Kg",カロリー計算!G6*G7/1000,IF(H7="IU/Kg",カロリー計算!G6*G7/1000,G7)))) -> 0 | J7: mg | N7: 0
B8: =カロリー計算!$C$7 -> ウルトラライト (85g パウチ) | F8: =カロリー計算!$D$7 -> ウェット | G8: 0 | H8: % | I8: =IF(H8="%",IF(G8<1,カロリー計算!G7*成分追加用マスター!G8*10,カロリー計算!G7*成分追加用マスター!G8/100),IF(H8="Kcal/Kg",カロリー計算!G7*G8/1000,IF(H8="mg/Kg",カロリー計算!G7*G8/1000,IF(H8="IU/Kg",カロリー計算!G7*G8/1000,G8)))) -> 0 | J8: mg | N8: 0
B9: =カロリー計算!$C$8 -> おやつ各種、少量 | F9: =カロリー計算!$D$8 -> おやつ | G9: 0 | I9: =IF(H9="%",IF(G9<1,カロリー計算!G8*成分追加用マスター!G9*10,カロリー計算!G8*成分追加用マスター!G9/100),IF(H9="Kcal/Kg",カロリー計算!G8*G9/1000,IF(H9="mg/Kg",カロリー計算!G8*G9/1000,IF(H9="IU/Kg",カロリー計算!G8*G9/1000,G9)))) -> 0 | J9: --- | N9: 0
B10: =カロリー計算!$C$9 ->  | F10: =カロリー計算!$D$9 -> 0 | G10: 0 | I10: =IF(H10="%",IF(G10<1,カロリー計算!G9*成分追加用マスター!G10*10,カロリー計算!G9*成分追加用マスター!G10/100),IF(H10="Kcal/Kg",カロリー計算!G9*G10/1000,IF(H10="mg/Kg",カロリー計算!G9*G10/1000,IF(H10="IU/Kg",カロリー計算!G9*G10/1000,G10)))) -> 0 | J10: --- | N10: 0
B11: =カロリー計算!$C$10 ->  | F11: =カロリー計算!$D$10 -> 0 | G11: 0 | I11: =IF(H11="%",IF(G11<1,カロリー計算!G10*成分追加用マスター!G11*10,カロリー計算!G10*成分追加用マスター!G11/100),IF(H11="Kcal/Kg",カロリー計算!G10*G11/1000,IF(H11="mg/Kg",カロリー計算!G10*G11/1000,IF(H11="IU/Kg",カロリー計算!G10*G11/1000,G11)))) -> 0 | J11: --- | N11: 0
B12: =カロリー計算!$C$11 ->  | F12: =カロリー計算!$D$11 -> 0 | G12: 0 | I12: =IF(H12="%",IF(G12<1,カロリー計算!G11*成分追加用マスター!G12*10,カロリー計算!G11*成分追加用マスター!G12/100),IF(H12="Kcal/Kg",カロリー計算!G11*G12/1000,IF(H12="mg/Kg",カロリー計算!G11*G12/1000,IF(H12="IU/Kg",カロリー計算!G11*G12/1000,G12)))) -> 0 | J12: --- | N12: 0
B13: =カロリー計算!$C$12 ->  | F13: =カロリー計算!$D$12 -> 0 | G13: 0 | I13: =IF(H13="%",IF(G13<1,カロリー計算!G12*成分追加用マスター!G13*10,カロリー計算!G12*成分追加用マスター!G13/100),IF(H13="Kcal/Kg",カロリー計算!G12*G13/1000,IF(H13="mg/Kg",カロリー計算!G12*G13/1000,IF(H13="IU/Kg",カロリー計算!G12*G13/1000,G13)))) -> 0 | J13: --- | N13: 0
B14: =カロリー計算!$C$13 ->  | F14: =カロリー計算!$D$13 -> 0 | G14: 0 | I14: =IF(H14="%",IF(G14<1,カロリー計算!G13*成分追加用マスター!G14*10,カロリー計算!G13*成分追加用マスター!G14/100),IF(H14="Kcal/Kg",カロリー計算!G13*G14/1000,IF(H14="mg/Kg",カロリー計算!G13*G14/1000,IF(H14="IU/Kg",カロリー計算!G13*G14/1000,G14)))) -> 0 | J14: --- | N14: 0
B15: =カロリー計算!$C$14 ->  | F15: =カロリー計算!$D$14 -> 0 | G15: 0 | I15: =IF(H15="%",IF(G15<1,カロリー計算!G14*成分追加用マスター!G15*10,カロリー計算!G14*成分追加用マスター!G15/100),IF(H15="Kcal/Kg",カロリー計算!G14*G15/1000,IF(H15="mg/Kg",カロリー計算!G14*G15/1000,IF(H15="IU/Kg",カロリー計算!G14*G15/1000,G15)))) -> 0 | J15: --- | N15: 0
B16: =カロリー計算!$C$15 ->  | F16: =カロリー計算!$D$15 -> 0 | G16: 0 | I16: =IF(H16="%",IF(G16<1,カロリー計算!G15*成分追加用マスター!G16*10,カロリー計算!G15*成分追加用マスター!G16/100),IF(H16="Kcal/Kg",カロリー計算!G15*G16/1000,IF(H16="mg/Kg",カロリー計算!G15*G16/1000,IF(H16="IU/Kg",カロリー計算!G15*G16/1000,G16)))) -> 0 | J16: --- | N16: 0
B17: =カロリー計算!$C$16 ->  | F17: =カロリー計算!$D$16 -> 0 | G17: 0 | I17: =IF(H17="%",IF(G17<1,カロリー計算!G16*成分追加用マスター!G17*10,カロリー計算!G16*成分追加用マスター!G17/100),IF(H17="Kcal/Kg",カロリー計算!G16*G17/1000,IF(H17="mg/Kg",カロリー計算!G16*G17/1000,IF(H17="IU/Kg",カロリー計算!G16*G17/1000,G17)))) -> 0 | J17: --- | N17: 0
B18: =カロリー計算!$C$17 ->  | F18: =カロリー計算!$D$17 -> 0 | G18: 0 | I18: =IF(H18="%",IF(G18<1,カロリー計算!G17*成分追加用マスター!G18*10,カロリー計算!G17*成分追加用マスター!G18/100),IF(H18="Kcal/Kg",カロリー計算!G17*G18/1000,IF(H18="mg/Kg",カロリー計算!G17*G18/1000,IF(H18="IU/Kg",カロリー計算!G17*G18/1000,G18)))) -> 0 | J18: --- | N18: 0
B19: =カロリー計算!B19 -> 2023-09-30 | E19: 更新 | G19: 合 計 | I19: =N19 -> 0 | J19: mg | N19: =IF(J19="g",SUM(N5:N18)/1000,SUM(N5:N18)) -> 0
B20: 体重1キロ当りの制限値 | D20: 0 | F20: =IF(J19="mg","mg/Kg",IF(J19="g","g/Kg",IF(J19="IU","IU/Kg",IF(J19="Kcal","Kcal/Kg","－－－")))) -> mg/Kg | G20: =IF(J3="無判定",CONCATENATE(J3," "),CONCATENATE(J3," 制限値 ")) -> Max 制限値 | I20: =カロリー計算!E19*成分追加用マスター!D20 -> 0 | J20: =J19 -> mg
B21: 過不足 ・ 判 定 | I21: =I19-I20 -> 0 | J21: =IF(J3="Max",IF(I19>I20,"超過","OK"),IF(J3="Min",IF(I19<I20,"不足","OK")," ")) -> OK
B23: MEMO :

Sheet 体重の記録
A1: 計測日 | B1: 月齢(自動) | C1: 年齢(自動) | D1: 体重 | F1: グラフ表示用
A2: 2014-01-28 | B2: 0 | C2: 0 | D2: 5.93 | F2: 0
A3: 2015-03-15 | B3: =IF(A3="","",INT((A3-$A$2)/365.25*12)) -> 13 | C3: =IF(B3="","",B3/12) -> 1.083333333 | D3: 5.93 | F3: =IF(B3="","",INT(B3/12)) -> 1
A4: 2015-04-21 | B4: =IF(A4="","",INT((A4-$A$2)/365.25*12)) -> 14 | C4: =IF(B4="","",B4/12) -> 1.166666667 | D4: 6.36 | F4: =IF(B4="","",INT(B4/12)) -> 1
A5: 2015-06-02 | B5: 16 | C5: 1.333333333 | D5: 6.6 | F5: 1
A6: 2015-07-01 | B6: 17 | C6: 1.416666667 | D6: 6.77 | F6: 1
A7: 2015-07-31 | B7: 18 | C7: 1.5 | D7: 6.6 | F7: 1
A8: 2015-09-03 | B8: 19 | C8: 1.583333333 | D8: 6.8 | F8: 1
A9: 2015-09-30 | B9: 20 | C9: 1.666666667 | D9: 6.8 | F9: 1
A10: 2015-10-31 | B10: 21 | C10: 1.75 | D10: 7 | F10: 1
A11: 2015-12-02 | B11: 22 | C11: 1.833333333 | D11: 7 | F11: 1
A12: 2016-01-09 | B12: 23 | C12: 1.916666667 | D12: 7.3 | F12: 1
A13: 2016-01-31 | B13: 24 | C13: 2 | D13: 7 | F13: 2
A14: 2016-02-29 | B14: 25 | C14: 2.083333333 | D14: 7 | F14: 2
A15: 2016-03-30 | B15: 26 | C15: 2.166666667 | D15: 7 | F15: 2
A16: 2016-04-30 | B16: 27 | C16: 2.25 | D16: 7 | F16: 2
A17: 2016-05-30 | B17: 28 | C17: 2.333333333 | D17: 7.2 | F17: 2
A18: 2016-07-03 | B18: 29 | C18: 2.416666667 | D18: 6.9 | F18: 2
A19: 2016-07-31 | B19: 30 | C19: 2.5 | D19: 6.9 | F19: 2
A20: 2016-08-31 | B20: 31 | C20: 2.583333333 | D20: 7.1 | F20: 2
A21: 2016-09-30 | B21: 32 | C21: 2.666666667 | D21: 6.9 | F21: 2
A22: 2016-10-30 | B22: 33 | C22: 2.75 | D22: 6.8 | F22: 2
A23: 2016-11-29 | B23: 34 | C23: 2.833333333 | D23: 7.3 | F23: 2
A24: 2016-12-31 | B24: 35 | C24: 2.916666667 | D24: 6.5 | F24: 2
A25: 2017-01-31 | B25: 36 | C25: 3 | D25: 6.6 | F25: 3
A26: 2017-03-01 | B26: 37 | C26: 3.083333333 | D26: 6.6 | F26: 3
A27: 2017-03-30 | B27: 38 | C27: 3.166666667 | D27: 6.8 | F27: 3
A28: 2017-04-30 | B28: 39 | C28: 3.25 | D28: 6.5 | F28: 3
A29: 2017-05-31 | B29: 40 | C29: 3.333333333 | D29: 6.5 | F29: 3
A30: 2017-06-30 | B30: 41 | C30: 3.416666667 | D30: 6.5 | F30: 3
A31: 2017-07-30 | B31: 42 | C31: 3.5 | D31: 6.5 | F31: 3
A32: 2017-09-30 | B32: 44 | C32: 3.666666667 | D32: 6.1 | F32: 3
A33: 2017-10-31 | B33: 45 | C33: 3.75 | D33: 5.9 | F33: 3
A34: 2017-11-30 | B34: 46 | C34: 3.833333333 | D34: 6.5 | F34: 3
A35: 2017-12-31 | B35: 47 | C35: 3.916666667 | D35: 6.4 | F35: 3
A36: 2018-02-07 | B36: 48 | C36: 4 | D36: 6.2 | F36: 4
A37: 2018-02-28 | B37: 49 | C37: 4.083333333 | D37: 6.2 | F37: 4
A38: 2018-03-31 | B38: 50 | C38: 4.166666667 | D38: 6.5 | F38: 4
A39: 2018-04-30 | B39: 51 | C39: 4.25 | D39: 6.7 | F39: 4
A40: 2018-05-31 | B40: 52 | C40: 4.333333333 | D40: 6.2 | F40: 4
A41: 2018-06-30 | B41: 53 | C41: 4.416666667 | D41: 6.4 | F41: 4
A42: 2018-07-31 | B42: 54 | C42: 4.5 | D42: 6.4 | F42: 4
A43: 2018-08-31 | B43: 55 | C43: 4.583333333 | D43: 6.5 | F43: 4
A44: 2018-09-30 | B44: 56 | C44: 4.666666667 | D44: 6.1 | F44: 4
A45: 2018-10-31 | B45: 57 | C45: 4.75 | D45: 6.2 | F45: 4
A46: 2018-11-30 | B46: 58 | C46: 4.833333333 | D46: 6.7 | F46: 4
A47: 2018-12-31 | B47: 59 | C47: 4.916666667 | D47: 6.4 | F47: 4
A48: 2019-01-31 | B48: 60 | C48: 5 | D48: 6.2 | F48: 5
A49: 2019-02-28 | B49: 61 | C49: 5.083333333 | D49: 6.2 | F49: 5
A50: 2019-03-31 | B50: 62 | C50: 5.166666667 | D50: 6 | F50: 5
A51: 2019-04-30 | B51: 63 | C51: 5.25 | D51: 6 | F51: 5
A52: 2019-05-31 | B52: 64 | C52: 5.333333333 | D52: 6 | F52: 5
A53: 2019-06-30 | B53: 65 | C53: 5.416666667 | D53: 6.2 | F53: 5
A54: 2019-07-31 | B54: 66 | C54: 5.5 | D54: 6 | F54: 5
A55: 2019-08-31 | B55: 67 | C55: 5.583333333 | D55: 6 | F55: 5
A56: 2019-09-30 | B56: 68 | C56: 5.666666667 | D56: 6 | F56: 5
A57: 2019-10-31 | B57: 69 | C57: 5.75 | D57: 6 | F57: 5
A58: 2019-11-30 | B58: 70 | C58: 5.833333333 | D58: 6.2 | F58: 5
A59: 2019-12-31 | B59: 71 | C59: 5.916666667 | D59: 6.4 | F59: 5
A60: 2020-01-31 | B60: 72 | C60: 6 | D60: 6.2 | F60: 6
A61: 2020-02-29 | B61: 73 | C61: 6.083333333 | D61: 6.4 | F61: 6
A62: 2020-03-31 | B62: 74 | C62: 6.166666667 | D62: 6.2 | F62: 6
A63: 2020-04-30 | B63: 75 | C63: 6.25 | D63: 6.2 | F63: 6
A64: 2020-05-31 | B64: 76 | C64: 6.333333333 | D64: 5.8 | F64: 6
A65: 2020-06-30 | B65: 77 | C65: 6.416666667 | D65: 6 | F65: 6
A66: 2020-07-31 | B66: 78 | C66: 6.5 | D66: 6.1 | F66: 6
A67: 2020-09-30 | B67: 80 | C67: 6.666666667 | D67: 6 | F67: 6
A68: 2020-10-31 | B68: =IF(A68="","",INT((A68-$A$2)/365.25*12)) -> 81 | C68: =IF(B68="","",B68/12) -> 6.75 | D68: 6 | F68: =IF(B68="","",INT(B68/12)) -> 6
A69: 2020-11-30 | B69: 82 | C69: 6.833333333 | D69: 6.2 | F69: 6
A70: 2020-12-31 | B70: 83 | C70: 6.916666667 | D70: 5.8 | F70: 6
A71: 2021-01-31 | B71: 84 | C71: 7 | D71: 5.8 | F71: 7
A72: 2021-03-31 | B72: 86 | C72: 7.166666667 | D72: 5.8 | F72: 7
A73: 2021-04-30 | B73: 87 | C73: 7.25 | D73: 5.8 | F73: 7
A74: 2021-06-01 | B74: 88 | C74: 7.333333333 | D74: 6 | F74: 7
A75: 2021-06-30 | B75: 89 | C75: 7.416666667 | D75: 5.8 | F75: 7
A76: 2021-07-31 | B76: 90 | C76: 7.5 | D76: 5.6 | F76: 7
A77: 2021-09-30 | B77: 92 | C77: 7.666666667 | D77: 6 | F77: 7
A78: 2021-10-31 | B78: 93 | C78: 7.75 | D78: 6 | F78: 7
A79: 2021-11-30 | B79: 94 | C79: 7.833333333 | D79: 6 | F79: 7
A80: 2021-12-31 | B80: 95 | C80: 7.916666667 | D80: 6.2 | F80: 7
A81: 2022-01-31 | B81: 96 | C81: 8 | D81: 6.15 | F81: 8
A82: 2022-03-31 | B82: 98 | C82: 8.166666667 | D82: 6.15 | F82: 8
A83: 2022-04-30 | B83: 99 | C83: 8.25 | D83: 6.15 | F83: 8
A84: 2022-05-31 | B84: 100 | C84: 8.333333333 | D84: 6.15 | F84: 8
A85: 2022-06-30 | B85: 101 | C85: 8.416666667 | D85: 6.15 | F85: 8
A86: 2022-07-30 | B86: 102 | C86: 8.5 | D86: 6.2 | F86: 8
A87: 2022-08-30 | B87: 103 | C87: 8.583333333 | D87: 6.15 | F87: 8
A88: 2022-09-30 | B88: 104 | C88: 8.666666667 | D88: 6.25 | F88: 8
A89: 2022-11-30 | B89: 106 | C89: 8.833333333 | D89: 6 | F89: 8
A90: 2022-12-31 | B90: 107 | C90: 8.916666667 | D90: 6.05 | F90: 8
A91: 2023-01-31 | B91: 108 | C91: 9 | D91: 5.8 | F91: 9
A92: 2023-02-28 | B92: 109 | C92: 9.083333333 | D92: 5.75 | F92: 9
A93: 2023-03-31 | B93: 110 | C93: 9.166666667 | D93: 5.85 | F93: 9
A94: 2023-04-30 | B94: 111 | C94: 9.25 | D94: 5.85 | F94: 9
A95: 2023-05-31 | B95: 112 | C95: 9.333333333 | D95: 5.8 | F95: 9
A96: 2023-06-30 | B96: 113 | C96: 9.416666667 | D96: 5.9 | F96: 9
A97: 2023-07-31 | B97: 114 | C97: 9.5 | D97: 5.9 | F97: 9
A98: 2023-08-31 | B98: 115 | C98: 9.583333333 | D98: 5.8 | F98: 9
A99: 2023-09-30 | B99: 116 | C99: 9.666666667 | D99: 5.85 | F99: 9
D100: =D99 -> 5.85
D101: 5.85
D102: 5.85
D103: 5.85
D104: 5.85
D105: 5.85
D106: 5.85
D107: 5.85
D108: 5.85
D109: 5.85
D110: 5.85
D111: 5.85
D112: 5.85
D113: 5.85
D114: 5.85
D115: 5.85
D116: 5.85
D117: 5.85
D118: 5.85
D119: 5.85
D120: 5.85
D121: 5.85
D122: 5.85
D123: 5.85
D124: 5.85
D125: 5.85
D126: 5.85
D127: 5.85
D128: 5.85
D129: 5.85
D130: 5.85
D131: 5.85
B132: =IF(A132="","",INT((A132-$A$2)/365.25*12)) ->  | C132: =IF(B132="","",B132/12) ->  | D132: 5.85 | F132: =IF(B132="","",INT(B132/12)) -> 
D133: 5.85
D134: 5.85
D135: 5.85
D136: 5.85
D137: 5.85
D138: 5.85
D139: 5.85
D140: 5.85
D141: 5.85
D142: 5.85
D143: 5.85
D144: 5.85
D145: 5.85
D146: 5.85
D147: 5.85
D148: 5.85
D149: 5.85
D150: =D149 -> 5.85
D151: 5.85
D152: 5.85
D153: 5.85
D154: 5.85
D155: 5.85
D156: 5.85
D157: 5.85
D158: 5.85
D159: 5.85
D160: 5.85
D161: 5.85
D162: 5.85
D163: 5.85
D164: 5.85
D165: 5.85
D166: 5.85
D167: 5.85
D168: 5.85
D169: 5.85
D170: 5.85
D171: 5.85
D172: =D171 -> 5.85
D173: 5.85
D174: 5.85
D175: 5.85
D176: 5.85
D177: 5.85
D178: 5.85
D179: 5.85
D180: 5.85
D181: 5.85
D182: =D181 -> 5.85
D183: 5.85
D184: 5.85
D185: 5.85
D186: 5.85
D187: 5.85
D188: 5.85
D189: 5.85
D190: 5.85
D191: 5.85
D192: =D191 -> 5.85
D193: 5.85
D194: 5.85
D195: 5.85
B196: =IF(A196="","",INT((A196-$A$2)/365.25*12)) ->  | C196: =IF(B196="","",B196/12) ->  | D196: 5.85 | F196: =IF(B196="","",INT(B196/12)) -> 
D197: 5.85
D198: 5.85
D199: 5.85
D200: 5.85
... 41 more rows

Sheet フードの切替計画書
A1: フード切り替え計画表 (同量移行用)
C2: 現 行 | D2: 新 規
A3: フードの種類 | C3: FHN インドア | D3: FHN ステアライズド
A4: 現在の一日量 (g) | C4: 30
A5: 移行単位 (g) | C5: 5
A6: 完了までの総使用量 | C6: =SUM(C7:C37) -> 75 | D6: =SUM(D7:D37) -> 105
A7: 1 | B7: 2022-10-27 | C7: =IF(E7>$C$4,"",$C$4-E7) -> 25 | D7: =IF(E7>$C$4,"",E7) -> 5 | E7: =$C$5*A7 -> 5
A8: =A7+1 -> 2 | B8: =IF(E8>$C$4,"",B7+1) -> 2022-10-28 | C8: =IF(E8>$C$4,"",$C$4-E8) -> 20 | D8: =IF(E8>$C$4,"",E8) -> 10 | E8: =$C$5*A8 -> 10
A9: =A8+1 -> 3 | B9: =IF(E9>$C$4,"",B8+1) -> 2022-10-29 | C9: 15 | D9: 15 | E9: 15
A10: 4 | B10: 2022-10-30 | C10: 10 | D10: 20 | E10: 20
A11: 5 | B11: 2022-10-31 | C11: 5 | D11: 25 | E11: 25
A12: 6 | B12: 2022-11-01 | C12: 0 | D12: 30 | E12: 30
A13: 7 | E13: 35
A14: 8 | E14: 40
A15: 9 | E15: 45
A16: 10 | E16: 50
A17: 11 | E17: 55
A18: 12 | E18: 60
A19: 13 | E19: 65
A20: 14 | E20: 70
A21: =A20+1 -> 15 | E21: =$C$5*A21 -> 75
A22: 16 | E22: 80
A23: 17 | E23: 85
A24: 18 | E24: 90
A25: 19 | E25: 95
A26: 20 | E26: 100
A27: 21 | B27: =IF(E27>$C$4,"",B22+1) ->  | E27: 105
A28: 22 | B28: =IF(E28>$C$4,"",B27+1) ->  | E28: 110
A29: 23 | B29: =IF(E29>$C$4,"",B24+1) ->  | C29: =IF(E29>$C$4,"",$C$4-E29) ->  | D29: =IF(E29>$C$4,"",E29) ->  | E29: =$C$5*A29 -> 115
A30: 24 | B30: =IF(E30>$C$4,"",B29+1) ->  | C30: =IF(E30>$C$4,"",$C$4-E30) ->  | D30: =IF(E30>$C$4,"",E30) ->  | E30: =$C$5*A30 -> 120
A31: 25 | B31: =IF(E31>$C$4,"",B28+1) ->  | E31: 125
A32: 26 | B32: =IF(E32>$C$4,"",B31+1) ->  | E32: 130
A33: 27 | B33: =IF(E33>$C$4,"",B26+1) ->  | C33: =IF(E33>$C$4,"",$C$4-E33) ->  | D33: =IF(E33>$C$4,"",E33) ->  | E33: =$C$5*A33 -> 135
A34: 28 | B34: =IF(E34>$C$4,"",B33+1) ->  | C34: =IF(E34>$C$4,"",$C$4-E34) ->  | D34: =IF(E34>$C$4,"",E34) ->  | E34: =$C$5*A34 -> 140
A35: 29 | B35: =IF(E35>$C$4,"",B34+1) ->  | C35: =IF(E35>$C$4,"",$C$4-E35) ->  | D35: =IF(E35>$C$4,"",E35) ->  | E35: =$C$5*A35 -> 145
A36: 30 | B36: =IF(E36>$C$4,"",B35+1) ->  | C36: =IF(E36>$C$4,"",$C$4-E36) ->  | D36: =IF(E36>$C$4,"",E36) ->  | E36: =$C$5*A36 -> 150
A37: 31 | B37: =IF(E37>$C$4,"",B26+1) ->  | E37: 155
